fUST/lending_fUST_20240110
["ID","MTS","AMOUNT","RATE_DAILY","PERIOD"]
[310962756,1704835983983,-500.0,0.00036986,2]
[310962758,1704835983992,-500.0,0.00036986,2]
[310962760,1704835984002,-500.0,0.00036986,2]
[310962762,1704835984011,-500.0,0.00036986,2]
[310962764,1704835984020,-1615.85,0.00036986,2]
[310962766,1704835984029,-2477.66,0.00036986,2]
[310962768,1704835984038,-500.0,0.00036986,2]
[310962770,1704835984047,-578.23904394,0.00036986,2]
[310962771,1704835984056,-500.0,0.00036986,2]
[310962773,1704835984066,-500.0,0.00036986,2]
[310962775,1704835984076,-1519.77,0.00036986,2]
[310962777,1704835984085,-1883.71,0.00036986,2]
[310962779,1704835984095,-1292.94,0.00036986,2]
[310962781,1704835984105,-1919.14,0.00036986,2]
[310962784,1704835984115,-500.0,0.00036986,2]
[310962785,1704835984126,-9000.61,0.00036986,2]
[310962787,1704835984136,-500.0,0.00036986,2]
[310962789,1704835984146,-6104.64,0.00036986,2]
[310962791,1704835984160,-3982.12,0.00036986,2]
[310962793,1704835984171,-514.33,0.00036986,2]
[310962795,1704835984181,-500.0,0.00036986,2]
[310962797,1704835984192,-500.0,0.00036986,2]
[310962799,1704835984202,-4429.19,0.00036986,2]
[310962801,1704835984212,-224.10012758,0.00036986,2]
[310962803,1704835984221,-500.0,0.00036986,2]
[310962805,1704835984231,-500.0,0.00036986,2]
[310962807,1704835984242,-500.45,0.00036986,2]
[310962809,1704835984252,-500.0,0.00036986,2]
[310962811,1704835984261,-428.71928812,0.00036986,2]
[310962813,1704835984272,-708.79,0.00036986,2]
[310962815,1704835984282,-500.0,0.00036986,2]
[310962817,1704835984291,-500.0,0.00036986,2]
[310962819,1704835984301,-500.0,0.00036986,2]
[310962821,1704835984310,-500.0,0.00036986,2]
[310962822,1704835984319,-500.0,0.00036986,2]
[310962825,1704835984328,-500.0,0.00036986,2]
[310962826,1704835984338,-565.4,0.00036986,2]
[310962828,1704835984348,-500.0,0.00036986,2]
[310962830,1704835984357,-500.0,0.00036986,2]
[310962832,1704835984367,-500.0,0.00036986,2]
[310962834,1704835984376,-633.37,0.00036986,2]
[310962836,1704835984385,-500.0,0.00036986,2]
[310962838,1704835984394,-600.23,0.00036986,2]
[310962840,1704835984408,-500.0,0.00036986,2]
[310962842,1704835984417,-2833.53,0.00036986,2]
[310962844,1704835984427,-6250.07,0.00036986,2]
[310962846,1704835984436,-562.49,0.00036986,2]
[310962848,1704835984446,-500.0,0.00036986,2]
[310962850,1704835984455,-518.02,0.00036986,2]
[310962852,1704835984464,-1000.0,0.00036986,2]
[310962854,1704835984473,-500.0,0.00036986,2]
[310962856,1704835984483,-1442.71,0.00036986,2]
[310962858,1704835984492,-500.0,0.00036986,2]
[310962860,1704835984505,-500.0,0.00036986,2]
[310962862,1704835984514,-500.0,0.00036986,2]
[310962864,1704835984523,-2071.81,0.00036986,2]
[310962866,1704835984533,-12588.07,0.00036986,2]
[310962868,1704835984543,-500.0,0.00036986,2]
[310962870,1704835984553,-1878.72,0.00036986,2]
[310962872,1704835984563,-1382.92859819,0.00036999,3]
[310962874,1704835984572,-154.86062544,0.00037,4]
[310962876,1704835984581,-1000.0,0.00037,37]
[310962878,1704835984591,-30289.24713733,0.00037,2]
[310962880,1704835984600,-2534.35810058,0.00037,8]
[310962882,1704835984609,-1000.0,0.00037,7]
[310962884,1704835984619,-1000.0,0.00037,5]
[310962886,1704835984628,-129655.64548025,0.00037,7]
[310962892,1704835984689,-406.647,0.00037,7]
[310962895,1704835984705,-36822.5564554,0.00037,7]
[310962897,1704835984716,-22138.46281871,0.00037,7]
[310962899,1704835984727,-289.70889782,0.00037,7]
[310962901,1704835984739,-1619.86288852,0.00037,7]
[310962903,1704835984750,-16741.50437128,0.00037,7]
[310962905,1704835984761,-141399.99999999,0.00037,7]
[310962916,1704835984859,3477.2521975,0.0001539,2]
[310963286,1704835989189,8742.06219,0.00013708,2]
[310964260,1704835999218,975.795941,0.0001414,2]
[310964266,1704835999270,3477.2521975,0.00015397,2]
[310966155,1704836019269,3475.78930461,0.00015397,2]
[310967362,1704836031659,384.93679232,0.0001539,20]
[310967488,1704836032958,164.13164231,0.0001539,2]
[310968722,1704836047100,310.315232,0.00014705,2]
[310969794,1704836122443,250.0,0.00014696,2]
[310969797,1704836220174,200.0,0.00022852,7]
[310969798,1704836220919,348.0,0.00022852,7]
[310969805,1704836407046,24900.0,0.00014615,2]
[310969807,1704836443326,1118.9435446,0.00014592,2]
[310969813,1704836489064,310.315232,0.00014586,2]
[310969821,1704836622528,462.60407434,0.00015705,20]
[310969826,1704836703843,154.83,0.00029,30]
[310969829,1704836765112,165.84375064,0.00022,120]
[310969836,1704836825407,3477.2521975,0.00015233,2]
[310969838,1704836838402,24900.0,0.00014542,2]
[310969884,1704837009852,260.38238336,0.00015453,2]
[310969944,1704837032343,-520.84270389,0.00015512,2]
[310969946,1704837032353,-155.01550155,0.00015513,2]
[310969948,1704837032362,-156.63290004,0.00015514,2]
[310969950,1704837032372,-261.71556348,0.00015514,2]
[310969952,1704837032381,-525.50594084,0.00015514,2]
[310969954,1704837032390,-606.52275476,0.00015514,2]
[310969956,1704837032399,-586.93974545,0.00015514,2]
[310969958,1704837032409,-166.32391295,0.00015514,2]
[310969960,1704837032418,-155.01550155,0.00015515,2]
[310969962,1704837032428,-155.01550155,0.00015515,2]
[310969964,1704837032437,-155.01550155,0.00015516,2]
[310969966,1704837032447,-328.87291893,0.00015516,2]
[310969968,1704837032456,-260.53656778,0.00015516,2]
[310969970,1704837032466,-260.869305,0.00015516,2]
[310969972,1704837032475,-155.01550155,0.00015517,2]
[310969974,1704837032485,-19655.90106703,0.00015517,2]
[310969976,1704837032494,-4807.65400943,0.00015518,2]
[310969977,1704837032504,-466.66922569,0.00015518,2]
[310969978,1704837032513,-946.99985386,0.00015519,2]
[310969980,1704837032522,-593.96547105,0.00015519,2]
[310969982,1704837032531,-13689.20949741,0.00015519,2]
[310969984,1704837032541,-114935.49285117,0.00015519,2]
[310969986,1704837032556,-46088.75014875,0.00015519,2]
[310969988,1704837032567,-50235.0772511,0.00015519,2]
[310969990,1704837032582,-11478.25,0.00015519,2]
[310970049,1704837038148,-285.67741127,0.00015512,2]
[310970050,1704837038157,-7941.85502117,0.00015513,2]
[310970052,1704837038167,-12632.10192685,0.00015519,2]
[310970053,1704837038179,-10202.84952288,0.00015519,2]
[310970054,1704837038190,-25153.88149612,0.00015519,2]
[310970055,1704837038199,-36818.51868738,0.0001552,2]
[310970056,1704837038208,-7985.3418189,0.00015523,2]
[310970057,1704837038217,-1108.64583651,0.00015553,2]
[310970058,1704837038226,-3212.46627617,0.00015554,2]
[310970059,1704837038235,-5951.58511538,0.00015699,2]
[310970060,1704837038244,-164.88125202,0.000157,2]
[310970061,1704837038254,-301.2405075,0.00015704,2]
[310970062,1704837038263,-309.6594025,0.00015705,2]
[310970063,1704837038272,-173.11378109,0.00015705,2]
[310970064,1704837038282,-214.01133807,0.00015705,2]
[310970065,1704837038291,-2707.91160787,0.00015705,2]
[310970066,1704837038303,-874.54656171,0.00015705,2]
[310970068,1704837038313,-914.24192615,0.00015706,2]
[310970071,1704837038322,-260.15058301,0.00015708,2]
[310970073,1704837038331,-37197.84315478,0.00015708,2]
[310970074,1704837038340,-2069.9093597,0.0001571,2]
[310970076,1704837038349,-2099.91652736,0.0001571,2]
[310970078,1704837038359,-234.95410623,0.00015711,2]
[310970079,1704837038368,-2766.12485426,0.00015711,2]
[310970080,1704837038377,-276000.0,0.00015713,2]
[310970081,1704837038388,-15393.28675767,0.00016,2]
[310970082,1704837038397,-260.38238334,0.00016266,2]
[310970083,1704837038407,-271.89552092,0.000165,2]
[310970084,1704837038416,-260.38238334,0.00017078,2]
[310970085,1704837038425,-200.0,0.00017094,2]
[310970086,1704837038435,-246.91661038,0.000178,2]
[310970087,1704837038444,-260.38238334,0.00017891,2]
[310970088,1704837038454,-10496.72843604,0.00017898,2]
[310970089,1704837038463,-260.38238334,0.00018703,2]
[310970090,1704837038472,-280.0,0.00018803,2]
[310970091,1704837038482,-1578.28669107,0.00019,2]
[310970092,1704837038491,-179.370485,0.00019178,2]
[310970093,1704837038500,-1112.0110415,0.000195,2]
[310970094,1704837038509,-155.06512735,0.0002,2]
[310970095,1704837038519,-510.5588262,0.0002,2]
[310970096,1704837038528,-2993.53442921,0.0002,2]
[310970097,1704837038537,-676.79171251,0.0002,2]
[310970098,1704837038551,-853.38318073,0.0002,2]
[310970099,1704837038561,-236.58553914,0.0002,2]
[310970100,1704837038572,-155.04651395,0.0002,2]
[310970101,1704837038581,-439.35135649,0.0002,2]
[310970102,1704837038591,-1194.83746505,0.0002,2]
[310970103,1704837038600,-151.52878911,0.0002,2]
[310970104,1704837038610,-391.0,0.00020684,2]
[310970105,1704837038619,-326.6549607,0.00021,2]
[310970106,1704837038628,-166.666666,0.00021918,2]
[310970107,1704837038645,-309.80369889,0.00022,2]
[310970108,1704837038659,-4916.51301772,0.00022,2]
[310970109,1704837038670,-292.76629846,0.00022,4]
[310970110,1704837038681,-3927.64829251,0.00022,2]
[310970111,1704837038691,-156.82833971,0.00022,2]
[310970112,1704837038701,-300.0,0.00022,2]
[310970113,1704837038711,-200.0,0.00022,2]
[310970114,1704837038721,-1821.42144287,0.00022,2]
[310970115,1704837038730,-2079.14548292,0.00022,2]
[310970116,1704837038740,-166.666666,0.00022431,2]
[310970117,1704837038749,-166.666666,0.00022944,2]
[310970118,1704837038760,-9918.08132345,0.00023,2]
[310970119,1704837038772,-2092.57766549,0.00023,2]
[310970120,1704837038782,-500.0,0.00023288,2]
[310970121,1704837038792,-430.77562761,0.00023288,2]
[310970122,1704837038806,-500.0,0.00023288,2]
[310970123,1704837038815,-575.31483728,0.00023288,2]
[310970124,1704837038825,-319.2725933,0.00023288,2]
[310970125,1704837038835,-500.0,0.00023288,4]
[310970126,1704837038844,-467.53031058,0.00023288,4]
[310970127,1704837038854,-518.87514414,0.00023288,4]
[310970128,1704837038864,-157.39475144,0.00023288,4]
[310970129,1704837038874,-407.73507484,0.00023288,4]
[310970130,1704837038884,-166.666666,0.00023456,2]
[310970131,1704837038894,-166.666666,0.00023969,2]
[310970132,1704837038906,-155.06202481,0.00024,2]
[310970133,1704837038916,-2292.62638427,0.00024,2]
[310970134,1704837038925,-166.666666,0.00024482,2]
[310970135,1704837038935,-297.9387417,0.00024658,2]
[310970136,1704837038944,-3000.0,0.00025,2]
[310970137,1704837038954,-613.86507578,0.00025,2]
[310970138,1704837038963,-4709.99124251,0.00025,2]
[310970139,1704837038973,-155.04651395,0.00025,2]
[310970140,1704837038982,-783.16983902,0.00025,2]
[310970141,1704837038992,-978.88032498,0.000259,2]
[310970142,1704837039001,-525.7750246,0.00026,2]
[310970143,1704837039011,-496.879336,0.0002698,5]
[310970144,1704837039021,-2726.02455569,0.00027,2]
[310970145,1704837039031,-1407.38454672,0.00027,2]
[310970146,1704837039040,-773.17195784,0.00027393,2]
[310970147,1704837039053,-266.92170555,0.00027394,2]
[310970148,1704837039062,-760.28816943,0.00027394,2]
[310970149,1704837039071,-15566.15,0.00027397,3]
[310970150,1704837039080,-12971.79,0.00027397,3]
[310970151,1704837039089,-10809.82,0.00027397,3]
[310970152,1704837039098,-409.40928283,0.00028,2]
[310970153,1704837039108,-1982.4602042,0.00029,2]
[310970154,1704837039117,-5000.0,0.00029,3]
[310970155,1704837039127,-3006.85624099,0.00029,2]
[310970156,1704837039136,-763.21617798,0.00029,2]
[310970157,1704837039145,-1574.06464313,0.000295,30]
[310970158,1704837039154,-243.70040844,0.0003,4]
[310970159,1704837039163,-6243.35439241,0.0003,4]
[310970160,1704837039174,-686.45378424,0.0003,4]
[310970161,1704837039183,-463.25005188,0.0003,4]
[310970162,1704837039193,-362.69271405,0.0003,4]
[310970163,1704837039202,-216.0,0.0003,2]
[310970164,1704837039211,-197.40048307,0.00030554,2]
[310970165,1704837039221,-473.98830861,0.00030554,2]
[310970166,1704837039230,-773.54286458,0.00030554,2]
[310970167,1704837039240,-434.75078632,0.00030554,2]
[310970168,1704837039249,-186.32176557,0.00030554,2]
[310970169,1704837039259,-1044.33653917,0.00030558,4]
[310970170,1704837039269,-575.08447682,0.00030558,4]
[310970171,1704837039278,-309.64673158,0.00030558,4]
[310970172,1704837039287,-1829.72445575,0.00030559,4]
[310970173,1704837039300,-2697.20765004,0.0003056,120]
[310970174,1704837039309,-103942.59633946,0.00031,4]
[310970175,1704837039318,-539.41790632,0.00031,2]
[310970176,1704837039329,-151.01359122,0.00031683,30]
[310970177,1704837039339,-680.81316922,0.000318,3]
[310970178,1704837039349,-666.71258938,0.00031801,2]
[310970179,1704837039359,-151.01359122,0.0003233,7]
[310970180,1704837039369,-258.46537657,0.00032876,7]
[310970181,1704837039378,-500.0,0.00032876,7]
[310970182,1704837039388,-614.45444497,0.00032876,7]
[310970183,1704837039397,-306.48612796,0.00032876,7]
[310970184,1704837039406,-311.32508648,0.00032876,7]
[310970186,1704837039416,-500.0,0.00032876,7]
[310970187,1704837039425,-7172.55453658,0.00032899,3]
[310970189,1704837039435,-11645.49633956,0.00032901,3]
[310970191,1704837039444,-5000.41243025,0.00032918,3]
[310970194,1704837039458,-3555.88850259,0.00032918,3]
[310970196,1704837039470,-1276.28625353,0.00032918,3]
[310970198,1704837039480,-189.45867673,0.00032921,7]
[310970200,1704837039490,-189.45867673,0.00032928,7]
[310970202,1704837039500,-189.45867673,0.00032972,7]
[310970204,1704837039510,-151.01359122,0.0003299,4]
[310970206,1704837039519,-649.46848965,0.00033,4]
[310970208,1704837039529,-72.45248007,0.00033,2]
[310970210,1704837039825,-143.54751993,0.00033,2]
[310970211,1704837039834,-189.45867673,0.00033062,7]
[310970212,1704837039844,-189.45867673,0.00033084,7]
[310970213,1704837039853,-189.45867673,0.00033133,7]
[310970214,1704837039863,-189.45867673,0.00033171,7]
[310970215,1704837039879,-189.45867673,0.00033267,7]
[310970216,1704837039888,-189.45867673,0.00033464,7]
[310970217,1704837039898,-189.45867673,0.0003354,7]
[310970218,1704837039909,-189.45867673,0.00033582,7]
[310970219,1704837039918,-151.01359122,0.00033663,2]
[310970220,1704837039928,-189.45867673,0.00033751,7]
[310970221,1704837039938,-189.45867673,0.00033842,7]
[310970222,1704837039948,-189.45867673,0.00033869,7]
[310970223,1704837039958,-189.45867673,0.00033972,7]
[310970224,1704837039968,-1000.0,0.00034,7]
[310970225,1704837039978,-189.45867673,0.00034254,7]
[310970226,1704837039987,-189.45867673,0.00034259,7]
[310970227,1704837039996,-18429.41165,0.0003452,3]
[310970228,1704837040006,-623.60576465,0.00034521,2]
[310970314,1704837044396,-708.26400384,0.00015512,2]
[310970315,1704837044405,-272.13942035,0.00015552,2]
[310970317,1704837044415,-3376.39423535,0.00034521,2]
[310970318,1704837044424,-189.45867673,0.00034605,7]
[310970319,1704837044433,-155.0,0.0003462,2]
[310970320,1704837044442,-3503.4664213,0.000348,14]
[310970321,1704837044451,-189.45867673,0.00034828,7]
[310970322,1704837044460,-1164.74358219,0.00034886,2]
[310970323,1704837044469,-12220.9100946,0.000349,5]
[310970324,1704837044478,-189.45867673,0.00034939,7]
[310970326,1704837044487,-1318.0,0.00034949,20]
[310970328,1704837044496,-388.53399242,0.00035,4]
[310970330,1704837044505,-283.822248,0.00035,7]
[310970332,1704837044514,-6802.96007234,0.00035,4]
[310970334,1704837044524,-591.11085398,0.00035,2]
[310970336,1704837044533,-7803.1787706,0.00035,4]
[310970337,1704837044542,-332.52969855,0.00035,4]
[310970338,1704837044552,-189.45867673,0.00035208,7]
[310970339,1704837044562,-9224.45888187,0.00035258,4]
[310970340,1704837044574,-189.45867673,0.0003528,7]
[310970341,1704837044584,-200.44,0.000354,4]
[310970342,1704837044592,-23031.50803817,0.000355,14]
[310970343,1704837044601,-189.45867673,0.00035515,7]
[310970344,1704837044610,-189.45867673,0.00035558,7]
[310970345,1704837044618,-212.80557296,0.00035578,2]
[310970346,1704837044627,-167.96410175,0.00035614,4]
[310970347,1704837044636,-1669.95885966,0.00035614,4]
[310970348,1704837044646,-469.37613453,0.00035614,2]
[310970349,1704837044654,-560.33964085,0.00035614,4]
[310970350,1704837044663,-459.43277177,0.00035614,4]
[310970351,1704837044672,-554.01717511,0.00035614,4]
[310970352,1704837044681,-309.8879997,0.00035614,4]
[310970353,1704837044690,-155.16127502,0.00035615,4]
[310970354,1704837044699,-312.91539313,0.00035615,4]
[310970355,1704837044708,-320.40506021,0.00035615,2]
[310970356,1704837044717,-665.0951324,0.00035615,4]
[310970357,1704837044726,-209.42113913,0.00035615,4]
[310970358,1704837044735,-686.41228495,0.00035615,4]
[310970359,1704837044744,-376.22897643,0.00035615,4]
[310970360,1704837044753,-296.57104805,0.00035615,4]
[310970361,1704837044763,-500.0,0.00035616,2]
[310970362,1704837044775,-500.0,0.00035616,2]
[310970363,1704837044785,-928.97,0.00035616,2]
[310970364,1704837044794,-500.0,0.00035616,2]
[310970365,1704837044804,-500.0,0.00035616,2]
[310970366,1704837044813,-500.0,0.00035616,2]
[310970367,1704837044822,-544.58567648,0.00035616,2]
[310970368,1704837044831,-500.0,0.00035616,2]
[310970369,1704837044840,-500.0,0.00035616,2]
[310970370,1704837044849,-561.4115997,0.00035616,2]
[310970371,1704837044858,-500.0,0.00035616,2]
[310970372,1704837044868,-511.80144977,0.00035616,2]
[310970373,1704837044877,-500.0,0.00035616,2]
[310970374,1704837044887,-500.0,0.00035616,2]
[310970375,1704837044896,-197.01388374,0.00035616,2]
[310970376,1704837044905,-547.93,0.00035616,2]
[310970377,1704837044914,-1346.54,0.00035616,2]
[310970378,1704837044924,-500.0,0.00035616,2]
[310970379,1704837044933,-535.09593629,0.00035616,2]
[310970380,1704837044946,-563.37905131,0.00035616,2]
[310970381,1704837044980,-500.0,0.00035616,2]
[310970382,1704837044989,-500.0,0.00035616,2]
[310970383,1704837044998,-500.0,0.00035616,2]
[310970384,1704837045008,-500.0,0.00035616,2]
[310970385,1704837045016,-500.0,0.00035616,2]
[310970386,1704837045026,-273.23332775,0.00035616,2]
[310970387,1704837045035,-500.0,0.00035616,2]
[310970388,1704837045045,-500.0,0.00035616,2]
[310970389,1704837045056,-705.07,0.00035616,2]
[310970390,1704837045064,-500.0,0.00035616,2]
[310970391,1704837045074,-500.0,0.00035616,2]
[310970392,1704837045083,-464.50213809,0.00035616,2]
[310970393,1704837045092,-626.34084207,0.00035616,2]
[310970394,1704837045101,-500.0,0.00035616,2]
[310970395,1704837045110,-500.0,0.00035616,2]
[310970396,1704837045119,-500.0,0.00035616,2]
[310970397,1704837045128,-500.0,0.00035616,2]
[310970398,1704837045137,-45.46664997,0.00035616,2]
[310970399,1704837045247,-454.53335003,0.00035616,2]
[310970400,1704837045257,-500.0,0.00035616,2]
[310970401,1704837045266,-500.0,0.00035616,2]
[310970402,1704837045275,-502.09,0.00035616,2]
[310970403,1704837045284,-500.0,0.00035616,2]
[310970404,1704837045293,-500.0,0.00035616,2]
[310970405,1704837045305,-500.0,0.00035616,2]
[310970406,1704837045314,-106.71543405,0.00035616,2]
[310970407,1704837045325,-393.28456595,0.00035616,2]
[310970408,1704837045336,-743.42,0.00035616,2]
[310970409,1704837045345,-500.0,0.00035616,2]
[310970410,1704837045355,-537.45,0.00035616,2]
[310970411,1704837045364,-500.0,0.00035616,2]
[310970412,1704837045373,-500.0,0.00035616,2]
[310970413,1704837045383,-500.0,0.00035616,2]
[310970414,1704837045392,-500.0,0.00035616,2]
[310970415,1704837045401,-512.47450515,0.00035616,2]
[310970416,1704837045410,-500.41320758,0.00035616,2]
[310970417,1704837045420,-500.0,0.00035616,2]
[310970418,1704837045430,-4075.13,0.00035616,2]
[310970419,1704837045440,-502.58366231,0.00035616,2]
[310970420,1704837045449,-500.0,0.00035616,2]
[310970422,1704837045458,-500.0,0.00035616,2]
[310970424,1704837045467,-410.94773792,0.00035616,2]
[310970425,1704837045479,-94.35834131,0.00035616,2]
[310970426,1704837045488,-500.0,0.00035616,2]
[310970427,1704837045497,-500.0,0.00035616,2]
[310970428,1704837045506,-277.92954469,0.00035616,2]
[310970447,1704837045676,155.01550155,0.00013997,2]
[310970509,1704837048416,-174.68474877,0.0003452,4]
[310970511,1704837048426,-974.47162673,0.0003452,4]
[310970513,1704837048435,-6459.41997429,0.0003452,4]
[310970515,1704837048444,-304.67621055,0.0003452,4]
[310970667,1704837051511,-180.80130612,0.00023288,4]
[310970669,1704837051521,-3006.85624099,0.00025,2]
[310970673,1704837051531,-1494.06473906,0.00032053,2]
[310970676,1704837051542,-173.79916861,0.0003452,4]
[310970679,1704837051551,-2443.19457971,0.0003452,4]
[310970683,1704837051565,-5922.6164529,0.0003452,4]
[310970686,1704837051574,-217.0,0.000349,2]
[310970689,1704837051584,-378.85372888,0.00035614,4]
[310970692,1704837051593,-4612.09174307,0.00035614,4]
[310970743,1704837085243,1032.95587979,0.00015453,2]
[310970745,1704837088267,309.65937468,0.00015453,2]
[310970746,1704837100434,1817.90817906,0.00015453,2]
[310970747,1704837102227,4739.73774739,0.00015453,2]
[310970748,1704837118018,200.0,0.00025615,7]
[310970749,1704837139990,-292.76629846,0.00022,4]
[310970750,1704837140015,-500.0,0.00023288,2]
[310970751,1704837140041,-500.0,0.00023288,2]
[310970752,1704837140063,-161.23370154,0.00023288,2]
[310970759,1704837208069,-292.76629846,0.00022,4]
[310970760,1704837208098,-324.7009465,0.00023288,2]
[310970761,1704837208120,-500.0,0.00023288,2]
[310970762,1704837208142,-529.68184323,0.00023288,2]
[310970763,1704837208164,-364.77401498,0.00023288,2]
[310970764,1704837208188,-500.0,0.00023288,4]
[310970765,1704837208210,-473.28109538,0.00023288,4]
[310970766,1704837208230,-361.55125522,0.00023288,2]
[310970767,1704837208252,-433.75311638,0.00023288,2]
[310970768,1704837208274,-436.36162321,0.00023288,4]
[310970769,1704837208298,-409.36887206,0.00023288,4]
[310970770,1704837208319,-500.0,0.00023288,2]
[310970771,1704837208340,-243.02658583,0.00023288,4]
[310970772,1704837208361,-393.48687861,0.00023288,4]
[310970773,1704837208382,-191.83352552,0.00023288,4]
[310970774,1704837208401,-206.19520959,0.00023288,2]
[310970775,1704837208425,-298.21873503,0.00023288,2]
[310970791,1704837418022,200.0,0.00021089,7]
[310970931,1704838197603,24900.0,0.00015387,2]
[310970933,1704838229007,156.31662163,0.0001531,2]
[310971013,1704838232342,-260.869305,0.00015686,2]
[310971015,1704838232353,-708.26400384,0.00015687,2]
[310971017,1704838232367,-1239.58974316,0.00015688,2]
[310971019,1704838232379,-67.12319006,0.00015688,2]
[310971021,1704838232392,-519.81655539,0.00015688,2]
[310971022,1704838232404,-222.75795905,0.00015689,2]
[310971024,1704838232418,-724.24189481,0.00015689,2]
[310971025,1704838232431,-4807.65400943,0.00015689,2]
[310971027,1704838232442,-466.66922569,0.00015689,2]
[310971030,1704838232454,-156.63290004,0.0001569,2]
[310971032,1704838232466,-260.53656778,0.0001569,2]
[310971033,1704838232478,-593.96547105,0.0001569,2]
[310971034,1704838232490,-285.67741127,0.0001569,2]
[310971035,1704838232501,-155.0,0.0001569,2]
[310971036,1704838232512,-525.50594084,0.00015691,2]
[310971037,1704838232525,-1989.13674223,0.00015691,2]
[310971038,1704838232535,-2203.8396405,0.00015697,2]
[310971039,1704838232545,-271.89552092,0.000165,2]
[310971040,1704838232557,-158.27115553,0.00016607,2]
[310971041,1704838232570,-2069.9093597,0.000167,2]
[310971042,1704838232583,-2099.91652736,0.000167,2]
[310971043,1704838232595,-360.34675522,0.00016701,2]
[310971044,1704838232607,-32629.54258627,0.00016702,2]
[310971045,1704838232618,-168.971827,0.00016707,2]
[310971046,1704838232630,-47472.20521237,0.00017717,2]
[310971047,1704838232644,-2266.15,0.00017717,2]
[310971107,1704838238533,-220988.0479845,0.00017717,2]
[310971109,1704838238544,-10496.72843604,0.00017898,2]
[310971111,1704838238554,-6852.14696762,0.00018868,2]
[310971113,1704838238565,-1578.28669107,0.00019,2]
[310971116,1704838238577,-180.083072,0.00019178,2]
[310971118,1704838238587,-1112.0110415,0.000195,2]
[310971120,1704838238598,-1194.83746505,0.0002,2]
[310971122,1704838238608,-428.93135649,0.0002,2]
[310971124,1704838238620,-676.79171251,0.0002,2]
[310971126,1704838238631,-236.58553914,0.0002,2]
[310971129,1704838238642,-510.5588262,0.0002,2]
[310971131,1704838238653,-2993.53442921,0.0002,2]
[310971133,1704838238663,-155.0,0.0002,2]
[310971135,1704838238674,-853.38318073,0.0002,2]
[310971137,1704838238684,-684.063716,0.0002,2]
[310971139,1704838238694,-684.063716,0.0002,2]
[310971141,1704838238705,-684.063716,0.0002,2]
[310971143,1704838238715,-684.063716,0.0002,2]
[310971145,1704838238726,-684.063716,0.0002,2]
[310971148,1704838238737,-5849.70181013,0.00020235,2]
[310971150,1704838238747,-1994.72417435,0.0002024,2]
[310971152,1704838238758,-9841.05194793,0.00021,2]
[310971154,1704838238769,-12443.36605776,0.00021,2]
[310971156,1704838238778,-1543.36628755,0.00021,2]
[310971158,1704838238787,-193.91630954,0.00021,2]
[310971160,1704838238797,-326.6549607,0.00021,2]
[310971162,1704838238806,-1821.42144287,0.00021089,2]
[310971164,1704838238815,-2079.14548292,0.00021089,2]
[310971166,1704838238824,-200.0,0.00021089,2]
[310971186,1704838239002,-300.0,0.00021089,2]
[310971188,1704838239014,-166.666666,0.00021918,2]
[310971190,1704838239024,-292.17687985,0.00022,4]
[310971192,1704838239033,-156.82833971,0.00022,2]
[310971194,1704838239042,-3927.64829251,0.00022,2]
[310971196,1704838239051,-4916.51301772,0.00022,2]
[310971198,1704838239060,-385.53900529,0.000222,2]
[310971200,1704838239070,-309.73674311,0.00022219,2]
[310971202,1704838239079,-8600.64481078,0.00022221,2]
[310971204,1704838239089,-166.666666,0.00022431,2]
[310971206,1704838239098,-166.666666,0.00022944,2]
[310971208,1704838239107,-9918.08132345,0.00023,2]
[310971210,1704838239116,-2092.57766549,0.00023,2]
[310971212,1704838239126,-500.0,0.00023,2]
[310971214,1704838239134,-500.0,0.00023288,2]
[310971216,1704838239144,-500.0,0.00023288,2]
[310971218,1704838239153,-156.33172071,0.00023288,2]